bitfinex/quotes_BTCUSD_20250525
["timestamp","ask_amount","ask_price","bid_price","bid_amount"]
[1748175413815,0.02580302,107360.0,107350.0,1.0575587]
[1748175414477,0.02380302,107360.0,107350.0,1.0575587]
[1748175414815,0.01980302,107360.0,107350.0,1.0575587]
[1748175414987,0.00868125,107360.0,107350.0,1.0166857]
[1748175415192,0.01068125,107360.0,107350.0,1.0166857]
[1748175415605,0.01068125,107360.0,107350.0,1.0044937]
[1748175416634,0.01068125,107360.0,107350.0,0.9825847]
[1748175418376,0.01068125,107360.0,107350.0,0.6435847]
[1748175418580,0.01068125,107360.0,107350.0,0.9069877]
[1748175419487,0.01068125,107360.0,107350.0,0.8958697]
[1748175421012,0.01068125,107360.0,107350.0,0.6736417]
[1748175421428,0.01068125,107360.0,107350.0,0.8071617]
[1748175421640,0.01068125,107360.0,107350.0,0.7054937]
[1748175421983,0.01068125,107360.0,107350.0,0.8990747]
[1748175423261,0.01068125,107360.0,107350.0,0.8514247]
[1748175423684,0.01068125,107360.0,107350.0,0.8667247]
[1748175427195,0.01067968,107360.0,107350.0,0.8667247]
[1748175427519,0.07043858,107380.0,107360.0,0.0276937]
[1748175427682,0.16013494,107380.0,107360.0,0.0276937]
[1748175428769,0.16513494,107380.0,107360.0,0.0276937]
[1748175428994,0.15035781,107380.0,107360.0,0.0276937]
[1748175430672,0.15035781,107380.0,107370.0,0.18904]
[1748175431281,0.16513494,107380.0,107370.0,0.18904]
[1748175431434,0.16313494,107380.0,107370.0,0.18904]
[1748175431850,0.16013494,107380.0,107370.0,0.18904]
[1748175432052,0.16213494,107380.0,107370.0,0.18904]
[1748175432253,0.16213494,107380.0,107360.0,0.03715961]
[1748175432453,0.15306484,107380.0,107370.0,0.18904]
[1748175433657,5.167e-05,107370.0,107360.0,0.1764137]
[1748175433862,5.167e-05,107370.0,107360.0,0.3654537]
[1748175434062,5.167e-05,107370.0,107360.0,0.37493018]
[1748175434663,0.15101317,107380.0,107360.0,0.37487851]
[1748175434916,0.002,107370.0,107360.0,0.37487851]
[1748175435099,0.002,107370.0,107360.0,0.36540203]
[1748175435303,0.004,107370.0,107360.0,0.36540203]
[1748175435507,0.01113416,107370.0,107360.0,0.36540203]
[1748175436463,0.01313416,107370.0,107360.0,0.36540203]
[1748175436924,0.01313416,107370.0,107360.0,0.37487385]
[1748175437128,0.04463416,107370.0,107360.0,0.36540203]
[1748175437466,0.01313416,107370.0,107360.0,0.36540203]
[1748175437675,0.01513416,107370.0,107360.0,0.36540203]
[1748175437878,0.04663416,107370.0,107340.0,0.39468203]
[1748175438093,0.0315,107360.0,107350.0,0.18904]
[1748175438309,0.12104556,107360.0,107350.0,0.18904]
[1748175438922,0.13582269,107360.0,107350.0,0.18904]
[1748175439973,0.13682269,107360.0,107350.0,0.18904]
[1748175440320,0.14552389,107360.0,107350.0,0.18904]
[1748175441969,0.12942389,107360.0,107350.0,0.18904]
[1748175443106,0.12942389,107360.0,107340.0,0.39468203]
[1748175443313,0.12992389,107360.0,107350.0,0.18908]
[1748175444370,0.12992389,107360.0,107340.0,0.36328203]
[1748175444529,0.12992389,107360.0,107350.0,0.18908]
[1748175445751,0.12892389,107360.0,107350.0,0.18908]
[1748175446132,0.14412389,107360.0,107350.0,0.18908]
[1748175446570,0.14512389,107360.0,107350.0,0.18908]
[1748175447270,0.17655221,107360.0,107350.0,0.18908]
[1748175451728,0.14545221,107360.0,107350.0,0.18908]
[1748175452536,0.16105221,107360.0,107350.0,0.18908]
[1748175453187,0.14545221,107360.0,107350.0,0.18908]
[1748175453409,0.14549924,107360.0,107350.0,0.18908]
[1748175454084,0.14549924,107360.0,107350.0,0.20418]
[1748175454495,0.14545221,107360.0,107350.0,0.20325297]
[1748175454699,0.14180236,107360.0,107350.0,0.1882]
[1748175458963,0.14180236,107360.0,107350.0,0.2195]
[1748175459181,0.0522568,107360.0,107350.0,0.2195]
[1748175459391,0.0522568,107360.0,107350.0,0.24714203]
[1748175459592,0.14180236,107360.0,107350.0,0.36822]
[1748175459796,0.14180236,107360.0,107340.0,0.37738203]
[1748175459970,0.14180236,107360.0,107350.0,0.33688]
[1748175460633,0.15657949,107360.0,107350.0,0.33688]
[1748175461383,0.17217949,107360.0,107350.0,0.33688]
[1748175461751,0.18737949,107360.0,107350.0,0.33688]
[1748175463180,0.18737949,107360.0,107340.0,0.39358203]
[1748175463382,0.18737949,107360.0,107350.0,0.33688]
[1748175463765,0.15657949,107360.0,107350.0,0.33688]
[1748175464169,0.15657949,107360.0,107340.0,0.39358203]
[1748175464374,0.15657949,107360.0,107350.0,0.33688]
[1748175464580,0.14545221,107360.0,107340.0,0.39358203]
[1748175464802,0.14545221,107360.0,107350.0,0.33688]
[1748175465162,0.14545221,107360.0,107350.0,0.36848]
[1748175465385,0.14445221,107360.0,107350.0,0.36848]
[1748175466333,0.05590665,107360.0,107350.0,0.0316]
[1748175466531,0.05590665,107360.0,107350.0,1.21346348]
[1748175466732,0.06704951,107360.0,107350.0,0.39612203]
[1748175467863,0.05227238,107360.0,107350.0,0.39612203]
[1748175468406,0.05227238,107360.0,107350.0,0.73612203]
[1748175469756,0.02084406,107360.0,107350.0,0.73612203]
[1748175470572,0.02084406,107360.0,107350.0,1.85997903]
[1748175471331,0.0097012,107360.0,107350.0,1.85997903]
[1748175471630,0.0097012,107360.0,107350.0,1.88804162]
[1748175471862,0.0097012,107360.0,107350.0,1.94952459]
[1748175472123,0.001,107360.0,107350.0,1.94952459]
[1748175472361,0.00092062,107360.0,107350.0,1.98026944]
[1748175472824,0.0001508,107380.0,107370.0,0.05974203]
[1748175473068,0.0001508,107380.0,107370.0,0.67414403]
[1748175473311,0.0001508,107380.0,107370.0,0.58266903]
[1748175473929,0.0001508,107380.0,107370.0,0.51037103]
[1748175474164,0.0021508,107380.0,107370.0,0.47834503]
[1748175474377,0.0041508,107380.0,107370.0,0.47834503]
[1748175475360,0.0041508,107380.0,107370.0,0.81834503]
[1748175475741,0.0021508,107380.0,107370.0,0.81834503]
[1748175475943,0.0001508,107380.0,107370.0,0.81834503]
[1748175476743,0.0001508,107380.0,107370.0,0.81934503]
[1748175477563,0.00020588,107380.0,107370.0,0.81934503]
[1748175478831,0.0001508,107380.0,107370.0,0.81928995]
[1748175479270,0.0001508,107380.0,107370.0,0.65979692]
[1748175479459,0.0001508,107380.0,107370.0,0.88935795]
[1748175479669,0.0001508,107380.0,107370.0,0.001]
[1748175479882,0.08969636,107380.0,107370.0,0.02864203]
[1748175480085,0.10509636,107380.0,107370.0,0.14968]
[1748175480648,0.08969636,107380.0,107370.0,0.14968]
[1748175480848,0.08969636,107380.0,107370.0,0.001]
[1748175481425,0.10509636,107380.0,107370.0,0.14968]
[1748175481619,0.12109636,107380.0,107370.0,0.14968]
[1748175482045,0.12109636,107380.0,107370.0,0.001]
[1748175482455,0.08969636,107380.0,107370.0,0.001]
[1748175483079,0.10509636,107380.0,107370.0,0.001]
[1748175485896,0.12089636,107380.0,107370.0,0.001]
[1748175491958,0.12094708,107380.0,107370.0,0.001]
[1748175492312,0.08974708,107380.0,107370.0,0.001]
[1748175492932,0.08969636,107380.0,107370.0,0.00094928]
[1748175493273,0.10579636,107380.0,107370.0,0.00094928]
[1748175494166,0.08969636,107380.0,107370.0,0.00094928]
[1748175505842,0.08969636,107380.0,107360.0,0.24682]
[1748175506036,0.08954556,107370.0,107360.0,0.24682]
[1748175507214,0.08954556,107370.0,107360.0,0.39754]
[1748175508587,0.08954556,107370.0,107360.0,0.39554]
[1748175508792,0.08954556,107370.0,107360.0,0.41164]
[1748175510216,0.08954556,107370.0,107360.0,0.41364]
[1748175510568,0.08959824,107370.0,107360.0,0.41364]
[1748175511724,0.08954556,107370.0,107360.0,0.41358732]
[1748175512431,0.10438021,107370.0,107360.0,0.41358732]
[1748175515207,0.08954556,107370.0,107360.0,0.41358732]
[1748175523404,0.10438021,107370.0,107360.0,0.41358732]
[1748175525079,0.15022106,107370.0,107360.0,0.002]
[1748175525301,0.21055231,107370.0,107360.0,0.002]
[1748175525767,0.27521305,107370.0,107360.0,0.002]
[1748175525972,0.65421314,107370.0,107360.0,0.002]
[1748175526140,0.66352612,107370.0,107360.0,0.002]
[1748175526374,0.0313,107350.0,107330.0,0.7052]
[1748175526577,0.10328524,107340.0,107330.0,0.7052]
[1748175527316,0.1144215,107340.0,107330.0,0.7052]
[1748175527965,0.11447174,107340.0,107330.0,0.55652]
[1748175528363,0.12990174,107340.0,107330.0,0.33456]
[1748175528569,0.14510174,107340.0,107330.0,0.33456]
[1748175528994,0.14510174,107340.0,107310.0,0.40248]
[1748175529199,0.0151,107330.0,107310.0,0.37068]
[1748175529380,0.08954556,107320.0,107310.0,0.37068]
[1748175530625,0.10066388,107320.0,107310.0,0.37068]
[1748175531699,0.08954556,107320.0,107310.0,0.37068]
[1748175532190,0.08954556,107320.0,107310.0,0.37568]
[1748175532753,0.08954556,107320.0,107310.0,0.37068]
[1748175532972,0.08954556,107320.0,107310.0,0.37368]
[1748175533425,0.08954556,107320.0,107310.0,0.003]
[1748175533627,0.08954556,107320.0,107310.0,0.36596]
[1748175534027,0.08954556,107320.0,107310.0,0.003]
[1748175534229,0.08954556,107320.0,107310.0,0.2172]
[1748175534356,0.08954556,107320.0,107310.0,0.36596]
[1748175535186,0.08954556,107320.0,107310.0,0.003]
[1748175535387,0.12074556,107320.0,107310.0,0.003]
[1748175535743,0.08954556,107320.0,107310.0,0.003]
[1748175536332,0.08954556,107320.0,107300.0,0.43031292]
[1748175537087,0.12074556,107320.0,107300.0,0.02764203]
[1748175537316,0.08954556,107320.0,107300.0,0.39064203]
[1748175537517,0.08954556,107320.0,107300.0,0.42084203]
[1748175538756,0.08954556,107320.0,107300.0,0.43208401]
[1748175543839,0.12154556,107320.0,107300.0,0.41192401]
[1748175544650,0.12154556,107320.0,107300.0,0.42532401]
[1748175544829,0.12154556,107320.0,107300.0,0.44032401]
[1748175546482,0.12154556,107320.0,107300.0,0.43032401]
[1748175547035,0.12154556,107320.0,107300.0,0.43932401]
[1748175549307,0.12154556,107320.0,107300.0,0.43925619]
[1748175551682,0.13266388,107320.0,107300.0,0.43925619]
[1748175552525,0.1327182,107320.0,107300.0,0.43925619]
[1748175553048,0.1007182,107320.0,107300.0,0.43925619]
[1748175553229,0.1007182,107320.0,107300.0,0.41161416]
[1748175553380,0.1163182,107320.0,107300.0,0.43925619]
[1748175553589,0.11626388,107320.0,107300.0,0.43920187]
[1748175553800,0.13196388,107320.0,107300.0,0.43920187]
[1748175554019,0.13196388,107320.0,107300.0,0.26275984]
[1748175554184,0.13196388,107320.0,107300.0,0.04576187]
[1748175554185,0.11636388,107320.0,107300.0,0.04576187]
[1748175554395,0.11636388,107320.0,107300.0,0.009]
[1748175554396,0.02933968,107310.0,107300.0,0.009]
[1748175555444,0.040458,107310.0,107300.0,0.009]
[1748175555906,0.055758,107310.0,107300.0,0.009]
[1748175556228,0.1601519,107310.0,107300.0,0.009]
[1748175556434,0.1601519,107310.0,107290.0,0.20648]
[1748175556825,0.1601519,107310.0,107300.0,0.009]
[1748175557448,0.13418524,107310.0,107300.0,0.009]
[1748175557756,0.13418524,107310.0,107280.0,0.72991459]
[1748175557967,0.13418524,107310.0,107290.0,0.009]
[1748175558290,0.13418524,107310.0,107280.0,0.72991459]
[1748175558459,0.13418524,107310.0,107300.0,0.007]
[1748175559239,0.10328524,107310.0,107300.0,0.0382]
[1748175559452,0.01373968,107310.0,107300.0,0.088715]
[1748175559637,0.0397301,107310.0,107300.0,0.39352]
[1748175559785,0.10382207,107310.0,107300.0,0.38652]
[1748175560527,0.10482207,107310.0,107300.0,0.38652]
[1748175560741,0.10482207,107310.0,107300.0,0.39352]
[1748175561765,0.0899704,107310.0,107300.0,0.39352]
[1748175562704,0.02587843,107310.0,107300.0,0.39352]
[1748175562839,0.0407301,107310.0,107300.0,0.39352]
[1748175563215,0.0407301,107310.0,107300.0,0.37171888]
[1748175563626,0.0407301,107310.0,107300.0,0.36232]
[1748175563828,0.14527566,107310.0,107300.0,0.36232]
[1748175564027,0.14527566,107310.0,107300.0,0.007]
[1748175565616,0.14533123,107310.0,107300.0,0.007]
[1748175565942,0.13419248,107310.0,107300.0,0.007]
[1748175566824,0.13413691,107310.0,107300.0,0.00694443]
[1748175569427,0.1983015,107310.0,107300.0,0.00694443]
[1748175571324,0.16551066,107310.0,107300.0,0.00694443]
[1748175574814,0.18181066,107310.0,107300.0,0.00694443]
[1748175575018,0.20792295,107310.0,107300.0,0.00694443]
[1748175576080,0.19307128,107310.0,107300.0,0.00694443]
[1748175576784,0.2781294,107310.0,107300.0,0.00694443]
[1748175579382,0.66502822,107310.0,107300.0,0.00694443]
[1748175579562,0.67434632,107310.0,107300.0,0.00694443]
[1748175579767,0.66502822,107310.0,107300.0,0.00694443]
[1748175579967,0.70720939,107310.0,107300.0,0.00694443]
[1748175580200,1.19935102,107310.0,107300.0,0.00694443]
[1748175580429,0.03014085,107290.0,107270.0,0.19904]
[1748175580627,0.11978524,107280.0,107270.0,0.19904]
[1748175580845,0.11378524,107280.0,107270.0,0.19904]
[1748175580984,5.739e-05,107270.0,107260.0,0.69924]
[1748175581188,0.08960295,107270.0,107260.0,0.56704]
[1748175581396,0.08960295,107270.0,107260.0,0.68268]
[1748175581776,0.08560295,107270.0,107260.0,0.68318327]
[1748175582545,0.09673451,107270.0,107260.0,0.68418327]
[1748175583187,0.09673451,107270.0,107260.0,0.69018327]
[1748175583503,0.09673451,107270.0,107260.0,0.72338327]
[1748175583718,0.01113156,107270.0,107260.0,0.80134764]
[1748175583921,0.01113156,107270.0,107260.0,0.7510253]
[1748175584801,0.05774923,107280.0,107270.0,0.0332]
[1748175585002,0.14729479,107280.0,107270.0,0.0332]
[1748175585882,0.1144168,107280.0,107270.0,0.0332]
[1748175586102,0.1154168,107280.0,107270.0,0.0332]
[1748175586682,0.10167712,107280.0,107270.0,0.0372]
[1748175597948,0.01213156,107280.0,107270.0,0.06484203]
[1748175598152,0.10167712,107280.0,107270.0,0.09004923]
[1748175598294,0.10167712,107280.0,107270.0,0.21368203]
[1748175598512,0.10167712,107280.0,107270.0,0.19708203]
[1748175598916,0.10167712,107280.0,107270.0,0.21298203]
[1748175599339,0.09054556,107280.0,107270.0,0.21298203]
[1748175600604,0.09054556,107280.0,107270.0,0.55298203]
[1748175600807,0.09054556,107280.0,107270.0,0.52534]
[1748175600942,0.09054556,107280.0,107270.0,0.55298203]
[1748175603559,0.09054556,107280.0,107270.0,0.3765]
[1748175603735,0.09054556,107280.0,107270.0,0.74454203]
[1748175604125,0.10167712,107280.0,107270.0,0.40454203]
[1748175604929,0.09054556,107280.0,107270.0,0.40454203]
[1748175606697,0.10167712,107280.0,107270.0,0.40454203]
[1748175607168,0.10167712,107280.0,107270.0,0.3769]
[1748175607376,0.10167712,107280.0,107270.0,0.40454203]
[1748175607788,0.10167712,107280.0,107270.0,0.25570203]
[1748175607997,0.10167712,107280.0,107270.0,0.23980203]
[1748175608209,0.10167712,107280.0,107270.0,0.37204203]
[1748175609619,0.11727712,107280.0,107270.0,0.004]
[1748175609922,0.11727712,107280.0,107270.0,0.34436]
[1748175610271,0.11727712,107280.0,107270.0,0.19552]
[1748175610444,0.11727712,107280.0,107270.0,0.34436]
[1748175611558,0.12099322,107280.0,107270.0,0.34436]
[1748175611762,0.13709322,107280.0,107270.0,0.004]
[1748175611919,0.15163407,107280.0,107270.0,0.004]
[1748175612124,0.1729084,107280.0,107270.0,0.004]
[1748175612502,0.53526637,107280.0,107270.0,0.004]
[1748175613648,0.56507126,107280.0,107270.0,0.004]
[1748175614068,0.59652127,107280.0,107270.0,0.004]
[1748175614863,0.01454085,107270.0,107250.0,0.19152]
[1748175615179,0.11908524,107260.0,107250.0,0.19152]
[1748175615594,0.13393496,107260.0,107250.0,0.19152]
[1748175615781,0.14993496,107260.0,107250.0,0.19156]
[1748175616356,0.14993496,107260.0,107250.0,0.19856]
[1748175616557,0.17447581,107260.0,107250.0,0.007]
[1748175616931,0.17447581,107260.0,107250.0,0.009]
[1748175617509,0.83055775,107260.0,107250.0,0.007]
[1748175617710,1.04508545,107260.0,107250.0,0.007]
[1748175617926,0.7554085,107260.0,107250.0,0.007]
[1748175618139,0.0158,107220.0,107200.0,0.19156]
[1748175618341,0.0158,107220.0,107200.0,0.34044]
[1748175618342,0.10328524,107210.0,107200.0,0.34044]
[1748175619078,0.10128524,107210.0,107200.0,0.34044]
[1748175619484,0.10128524,107210.0,107200.0,0.00015094]
[1748175619697,0.10128524,107210.0,107200.0,0.00315094]
[1748175620578,0.08754556,107210.0,107200.0,0.00315094]
[1748175620820,0.08954556,107210.0,107200.0,0.08870787]
[1748175620964,0.08954556,107210.0,107200.0,0.00315094]
[1748175621187,0.08954556,107210.0,107200.0,0.34463094]
[1748175621752,0.08954556,107210.0,107200.0,0.19575094]
[1748175623710,0.08954556,107210.0,107200.0,0.00415094]
[1748175623917,0.08954556,107210.0,107200.0,0.19575094]
[1748175626309,0.10584556,107210.0,107200.0,0.19575094]
[1748175627481,0.10584556,107210.0,107200.0,0.19475094]
[1748175628294,0.10584556,107210.0,107200.0,0.19175094]
[1748175630440,0.08954556,107210.0,107200.0,0.19175094]
[1748175631628,0.08954556,107210.0,107200.0,0.20725094]
[1748175631845,0.08954556,107210.0,107200.0,0.22375094]
[1748175632282,0.08954556,107210.0,107200.0,0.20725094]
[1748175632903,0.08954556,107210.0,107200.0,0.19175094]
[1748175634514,0.08954556,107210.0,107200.0,0.22375094]
[1748175634715,0.08954556,107210.0,107200.0,0.24343704]
[1748175634914,0.08954556,107210.0,107200.0,0.21909542]
[1748175635742,0.08954556,107210.0,107200.0,0.03173542]
[1748175635938,0.08954556,107210.0,107200.0,0.36901542]
[1748175636140,0.08954556,107210.0,107200.0,0.37101542]
[1748175636742,0.08954556,107210.0,107200.0,0.2002746]
[1748175637782,0.08954556,107210.0,107200.0,0.0129146]
[1748175637984,0.08954556,107210.0,107200.0,0.3491946]
[1748175638367,0.08954556,107210.0,107200.0,0.0129146]
[1748175638809,0.12124556,107210.0,107200.0,0.18736]
[1748175639017,0.12124556,107210.0,107200.0,0.33628]
[1748175639836,0.12124556,107210.0,107160.0,0.0154]
[1748175639837,0.0156,107190.0,107160.0,0.0154]
[1748175640046,0.13498524,107180.0,107150.0,0.21921029]
[1748175640260,0.0157,107170.0,107150.0,0.36813029]
[1748175640439,0.08954556,107160.0,107150.0,0.14897029]
[1748175640657,0.10524556,107160.0,107150.0,0.33633029]
[1748175641070,0.10524556,107160.0,107150.0,0.18741029]
[1748175641485,0.10524556,107160.0,107150.0,5.029e-05]
[1748175641692,0.10524556,107160.0,107150.0,0.18741029]
[1748175641934,0.10524556,107160.0,107150.0,5.029e-05]
[1748175642138,0.12034556,107160.0,107150.0,0.19041029]
[1748175642338,0.12034556,107160.0,107150.0,0.18741029]
[1748175642721,0.11334556,107160.0,107150.0,0.18841029]
[1748175642923,0.11334556,107160.0,107150.0,0.00105029]
[1748175643567,0.11334556,107160.0,107150.0,0.00205029]
[1748175644628,0.73204752,107160.0,107150.0,0.00205029]
[1748175644837,0.02454085,107140.0,107120.0,0.52248]
[1748175645041,0.10328524,107130.0,107120.0,0.52298336]
[1748175645248,0.10328524,107130.0,107120.0,0.53161571]
[1748175645454,0.10328524,107130.0,107120.0,0.34421571]
[1748175645653,0.10328524,107130.0,107120.0,0.53161571]
[1748175646291,0.10428524,107130.0,107120.0,0.53161571]
[1748175646492,0.11998524,107130.0,107120.0,0.53261571]
[1748175646775,0.10428524,107130.0,107120.0,0.53261571]
[1748175646976,0.09054556,107130.0,107120.0,0.53161571]
[1748175647424,0.09654556,107130.0,107120.0,0.52398336]
[1748175648522,0.09654556,107130.0,107120.0,0.67298336]
[1748175649529,0.09654556,107130.0,107120.0,0.33658336]
[1748175649744,0.09654556,107130.0,107120.0,0.67302336]
[1748175650783,0.09654556,107130.0,107100.0,0.0303]
[1748175650983,0.09654556,107130.0,107110.0,0.21894]
[1748175651757,0.09054556,107130.0,107110.0,0.21894]
[1748175651963,0.08954556,107130.0,107120.0,0.149]
[1748175653072,0.09154556,107130.0,107120.0,0.149]
[1748175653289,0.10724556,107130.0,107120.0,0.18744]
[1748175653516,0.10624556,107130.0,107120.0,0.18744]
[1748175653691,0.09454556,107130.0,107120.0,0.18744]
[1748175656032,0.11074556,107130.0,107120.0,0.18744]
[1748175656213,0.09454556,107130.0,107120.0,0.18744]
[1748175658447,0.11074556,107130.0,107120.0,0.18748]
[1748175659226,0.09454556,107130.0,107120.0,0.18748]
[1748175661457,0.17507394,107130.0,107120.0,0.18748]
[1748175661667,0.19097394,107130.0,107120.0,0.18808]
[1748175662094,0.19097394,107130.0,107100.0,0.01525029]
[1748175662303,0.19097394,107130.0,107120.0,0.18808]
[1748175662510,0.20471362,107130.0,107120.0,0.18808]
[1748175662711,0.20471362,107130.0,107090.0,0.00851185]
[1748175662924,0.20071362,107130.0,107100.0,0.230755]
[1748175663151,0.20071362,107130.0,107090.0,5.032e-05]
[1748175663986,0.20071362,107130.0,107100.0,0.379778]
[1748175664194,0.20071362,107130.0,107100.0,0.14904]
[1748175664691,0.20071362,107130.0,107100.0,0.15764446]
[1748175664884,0.20171362,107130.0,107100.0,0.15764446]
[1748175665021,0.16890367,107130.0,107100.0,0.15764446]
[1748175665220,0.16790367,107130.0,107100.0,0.15764446]
[1748175665625,0.16890367,107130.0,107100.0,0.01212489]
[1748175666084,0.0165,107120.0,107100.0,0.01412489]
[1748175666311,0.10604556,107120.0,107100.0,0.01412489]
[1748175666976,0.10604556,107120.0,107110.0,0.14904]
[1748175667566,0.10704556,107120.0,107110.0,0.33716]
[1748175667768,0.001,107120.0,107110.0,1.29713256]
[1748175667974,0.03121843,107130.0,107110.0,0.798587]
[1748175668233,0.03121843,107130.0,107110.0,0.33716]
[1748175668471,0.002,107120.0,107090.0,0.01459117]
[1748175668677,0.002,107120.0,107100.0,2.04867156]
[1748175668852,0.002,107120.0,107110.0,1.333856]
[1748175669209,0.002,107120.0,107110.0,1.332856]
[1748175669379,0.03121843,107130.0,107110.0,1.320221]
[1748175669587,0.03121843,107130.0,107110.0,0.0316]
[1748175669790,0.03121843,107130.0,107120.0,0.0165]
[1748175669984,0.04376119,107140.0,107120.0,0.731841]
[1748175670141,0.04376119,107140.0,107130.0,0.33716]
[1748175670769,0.04376119,107140.0,107130.0,0.35366]
[1748175670976,0.04376119,107140.0,107130.0,1.249559]
[1748175671187,0.03265967,107140.0,107130.0,1.439475]
[1748175671390,0.03816145,107140.0,107130.0,1.550975]
[1748175671598,0.03816145,107140.0,107130.0,1.519605]
[1748175671975,0.03816145,107140.0,107130.0,1.520605]
[1748175672179,0.04116145,107140.0,107130.0,1.520605]
[1748175672578,0.00850178,107140.0,107130.0,1.520605]
[1748175673032,0.00850178,107140.0,107130.0,1.466016]
[1748175674204,0.00850178,107140.0,107130.0,1.55556156]
[1748175674732,0.00350178,107140.0,107130.0,1.55456156]
[1748175674938,0.00450178,107140.0,107130.0,1.55356156]
[1748175675215,0.00450178,107140.0,107130.0,1.55556156]
[1748175675351,0.00050178,107140.0,107130.0,1.55356156]
[1748175675759,0.00150178,107140.0,107130.0,1.40852156]
[1748175675984,0.00150178,107140.0,107130.0,1.55756156]
[1748175677187,0.00150178,107140.0,107130.0,1.55752156]
[1748175680963,0.01660178,107140.0,107130.0,0.34112]
[1748175681219,0.03230178,107140.0,107130.0,0.34112]
[1748175681387,0.03230178,107140.0,107130.0,0.004]
[1748175681593,0.03230178,107140.0,107130.0,0.34112]
[1748175681799,0.01660178,107140.0,107130.0,0.34112]
[1748175681942,0.00150178,107140.0,107130.0,0.34112]
[1748175682352,0.01660178,107140.0,107130.0,0.004]
[1748175682552,0.03230178,107140.0,107130.0,0.68112]
[1748175683816,0.03230178,107140.0,107130.0,0.344]
[1748175684223,0.03230178,107140.0,107130.0,0.68112]
[1748175684752,0.01660178,107140.0,107130.0,0.68112]
[1748175684952,0.00150178,107140.0,107130.0,0.68112]
[1748175686919,0.00150178,107140.0,107130.0,2.92916]
[1748175687101,0.00150178,107140.0,107130.0,3.120397]
[1748175687370,0.00150178,107140.0,107130.0,3.080536]
[1748175687581,0.00150178,107140.0,107130.0,2.049491]
[1748175687968,0.00150178,107140.0,107130.0,2.13903656]
[1748175691844,0.00150178,107140.0,107130.0,2.55493656]
[1748175693958,0.00150178,107140.0,107130.0,2.21781656]
[1748175694157,0.00150178,107140.0,107130.0,2.27070053]
[1748175694367,0.00150178,107140.0,107130.0,1.85480053]
[1748175701746,0.00150178,107140.0,107130.0,1.70580053]
[1748175701951,0.00150178,107140.0,107130.0,1.85480053]
[1748175703840,0.00150178,107140.0,107130.0,2.19004053]
[1748175715440,0.00150178,107140.0,107130.0,2.04104053]
[1748175715651,0.00150178,107140.0,107130.0,2.17404053]
[1748175717314,0.04420152,107170.0,107140.0,0.04554085]
[1748175717543,0.01110152,107170.0,107150.0,5.20633482]
[1748175717769,0.0032028,107180.0,107160.0,5.41504]
[1748175717928,0.0032028,107180.0,107170.0,3.45634964]
[1748175718122,0.0032028,107180.0,107170.0,3.46901756]
[1748175718726,0.04925967,107190.0,107170.0,3.46901756]
[1748175718978,0.04925967,107190.0,107180.0,2.241212]
[1748175719250,0.04925967,107190.0,107180.0,2.33075756]
[1748175720110,0.04925967,107190.0,107180.0,2.67075756]
[1748175720559,0.05025967,107190.0,107180.0,2.67075756]
[1748175720968,0.0176,107190.0,107180.0,2.67075756]
[1748175722235,0.0176,107190.0,107180.0,1.41371725]
[1748175722458,0.034,107190.0,107180.0,0.68522625]
[1748175722682,0.034,107190.0,107180.0,0.53626625]
[1748175722885,0.034,107190.0,107180.0,0.01710625]
[1748175723095,0.034,107190.0,107180.0,0.34522625]
[1748175723325,0.034,107190.0,107180.0,0.32812]
[1748175724880,0.0326,107170.0,107140.0,0.3562]
[1748175725083,0.0154,107160.0,107150.0,3.38724056]
[1748175725509,0.0154,107170.0,107150.0,3.40244056]
[1748175725712,0.0154,107180.0,107160.0,3.77118828]
[1748175725981,0.0154,107180.0,107170.0,2.554865]
[1748175726583,0.0305,107180.0,107170.0,2.554865]
[1748175727346,0.0305,107180.0,107170.0,2.894865]
[1748175727617,0.0305,107180.0,107170.0,2.895865]
[1748175728473,0.0305,107180.0,107170.0,2.896865]
[1748175728706,0.0154,107180.0,107170.0,2.896865]
[1748175728926,0.0305,107190.0,107180.0,0.34]
[1748175729142,0.0305,107190.0,107180.0,1.805377]
[1748175729357,0.0305,107190.0,107180.0,1.776973]
[1748175730012,0.0315,107190.0,107180.0,1.776973]
[1748175730230,0.0325,107190.0,107180.0,1.776973]
[1748175731326,0.0325,107190.0,107180.0,1.70537]
[1748175732280,0.0174,107190.0,107180.0,1.70537]
[1748175734405,0.0174,107190.0,107180.0,1.916329]
[1748175734621,0.0328,107190.0,107180.0,1.497853]
[1748175735816,0.0328,107190.0,107180.0,1.486823]
[1748175736619,0.0328,107190.0,107180.0,1.337863]
[1748175736803,0.0328,107190.0,107180.0,1.393793]
[1748175737011,0.0328,107190.0,107180.0,0.797343]
[1748175737227,0.0328,107190.0,107180.0,1.125463]
[1748175740539,0.0328,107190.0,107180.0,0.67512]
[1748175740740,0.0328,107190.0,107180.0,0.85428]
[1748175740951,0.0328,107190.0,107180.0,1.00324]
[1748175741902,0.0328,107190.0,107180.0,1.619239]
[1748175742110,0.0174,107190.0,107180.0,1.619239]
[1748175742314,0.002,107190.0,107180.0,2.14879973]
[1748175742516,0.002,107190.0,107180.0,2.14098456]
[1748175744956,0.002,107190.0,107180.0,2.2200822]
[1748175745714,0.0157,107210.0,107180.0,2.2037822]
[1748175745954,0.0157,107210.0,107190.0,5.13954556]
[1748175746162,0.0157,107210.0,107200.0,0.769845]
[1748175746934,0.0157,107210.0,107200.0,0.758545]
[1748175747298,0.0331,107210.0,107200.0,0.758545]
[1748175747522,0.0321,107210.0,107200.0,0.758545]
[1748175748364,0.0321,107210.0,107200.0,0.77497294]
[1748175748514,0.0321,107210.0,107200.0,0.78270594]
[1748175748735,0.0341,107210.0,107200.0,0.51263094]
[1748175749093,0.0371,107210.0,107200.0,0.51263094]
[1748175749518,0.0371,107210.0,107200.0,0.47017194]
[1748175749734,0.0371,107210.0,107200.0,0.32804]
[1748175749920,0.0379,107210.0,107200.0,0.17912]
[1748175750540,0.0329,107210.0,107200.0,0.17912]
[1748175750958,0.0309,107200.0,107190.0,0.34]
[1748175751174,0.0309,107200.0,107190.0,0.66804]
[1748175752449,0.0319,107200.0,107190.0,0.66804]
[1748175752646,0.03156,107200.0,107190.0,0.34]
[1748175752874,0.03156,107200.0,107190.0,0.66444]
[1748175754157,0.03156,107200.0,107190.0,0.32444]
[1748175757919,0.03156,107200.0,107180.0,0.33512]
[1748175758102,0.001,107200.0,107190.0,0.32448]
[1748175758662,0.0328,107200.0,107190.0,0.32448]
[1748175758837,0.10439816,107210.0,107190.0,0.32448]
[1748175759269,0.13719816,107210.0,107200.0,0.32448]